[Event "Titled Tuesday Blitz August 1 Early 2023"]
[White "Ladan, Nicholas"]
[Black "Mirzanurov, Bulat"]
[WhiteFideId "30918855"]
[BlackFideId "4184521"]
[WhiteElo "2396"]
[BlackElo "2177"]
[Result "1-0"]
[Round "7"]
[TimeControl "180+1"]
[Date "2023.08.01"]
[WhiteClock "0:00:15"]
[BlackClock "0:00:01"]
[Board "181"]

1. a3 {[%clk 0:03:00]}  d5 {[%clk 0:02:59]} 2. h3 {[%clk 0:03:01]}  e5 {[%clk 0:02:59]} 3. d3 {[%clk 0:03:01]}  Nf6 {[%clk 0:02:59]} 4. Nf3 {[%clk 0:03:02]}  Nc6 {[%clk 0:02:58]} 5. Bg5 {[%clk 0:03:02]}  h6 {[%clk 0:02:57]} 6. Bxf6 {[%clk 0:03:01]}  Qxf6 {[%clk 0:02:58]} 7. e4 {[%clk 0:03:02]}  dxe4 {[%clk 0:02:54]} 8. dxe4 {[%clk 0:03:02]}  Be6 {[%clk 0:02:53]} 9. Bb5 {[%clk 0:03:00]}  Bd6 {[%clk 0:02:52]} 10. Bxc6+ {[%clk 0:02:59]}  bxc6 {[%clk 0:02:53]} 11. Nc3 {[%clk 0:02:58]}  O-O {[%clk 0:02:53]} 12. O-O {[%clk 0:02:58]}  Rfd8 {[%clk 0:02:52]} 13. Qe2 {[%clk 0:02:51]}  Rab8 {[%clk 0:02:42]} 14. Rab1 {[%clk 0:02:39]}  Bc5 {[%clk 0:02:29]} 15. b4 {[%clk 0:02:27]}  Bd4 {[%clk 0:02:16]} 16. Na4 {[%clk 0:02:25]}  g5 {[%clk 0:01:38]} 17. Ne1 {[%clk 0:02:12]}  Kg7 {[%clk 0:01:09]} 18. Nd3 {[%clk 0:02:10]}  h5 {[%clk 0:01:03]} 19. Nac5 {[%clk 0:01:59]}  g4 {[%clk 0:00:50]} 20. Nxe6+ {[%clk 0:01:57]}  Qxe6 {[%clk 0:00:49]} 21. hxg4 {[%clk 0:01:41]}  hxg4 {[%clk 0:00:49]} 22. g3 {[%clk 0:01:41]}  Rh8 {[%clk 0:00:48]} 23. Kg2 {[%clk 0:01:41]}  f5 {[%clk 0:00:37]} 24. Rh1 {[%clk 0:01:18]}  Rhf8 {[%clk 0:00:25]} 25. exf5 {[%clk 0:01:15]}  Qxf5 {[%clk 0:00:21]} 26. Rh4 {[%clk 0:01:15]}  Rbe8 {[%clk 0:00:16]} 27. Qxg4+ {[%clk 0:01:12]}  Qxg4 {[%clk 0:00:16]} 28. Rxg4+ {[%clk 0:01:13]}  Kf7 {[%clk 0:00:16]} 29. Rh1 {[%clk 0:01:12]}  Ke6 {[%clk 0:00:16]} 30. c4 {[%clk 0:01:07]}  Kd7 {[%clk 0:00:15]} 31. Rh7+ {[%clk 0:01:04]}  Kc8 {[%clk 0:00:15]} 32. Rgg7 {[%clk 0:01:02]}  e4 {[%clk 0:00:15]} 33. Rxc7+ {[%clk 0:01:02]}  Kb8 {[%clk 0:00:15]} 34. Rb7+ {[%clk 0:01:03]}  Kc8 {[%clk 0:00:16]} 35. Rbc7+ {[%clk 0:00:56]}  Kb8 {[%clk 0:00:15]} 36. Nf4 {[%clk 0:00:53]}  Be5 {[%clk 0:00:12]} 37. Rb7+ {[%clk 0:00:52]}  Kc8 {[%clk 0:00:12]} 38. Rxa7 {[%clk 0:00:52]}  Bb8 {[%clk 0:00:07]} 39. Ra6 {[%clk 0:00:51]}  Bxf4 {[%clk 0:00:05]} 40. Rxc6+ {[%clk 0:00:50]}  Kb8 {[%clk 0:00:04]} 41. gxf4 {[%clk 0:00:49]}  Rxf4 {[%clk 0:00:05]} 42. Rh3 {[%clk 0:00:38]}  Ref8 {[%clk 0:00:05]} 43. f3 {[%clk 0:00:24]}  exf3+ {[%clk 0:00:04]} 44. Kf2 {[%clk 0:00:24]}  Rg8 {[%clk 0:00:02]} 45. Rxf3 {[%clk 0:00:23]}  Rfg4 {[%clk 0:00:02]} 46. Rcf6 {[%clk 0:00:19]}  Rg2+ {[%clk 0:00:02]} 47. Ke3 {[%clk 0:00:19]}  Re8+ {[%clk 0:00:03]} 48. Kd4 {[%clk 0:00:18]}  Rd8+ {[%clk 0:00:02]} 49. Kc5 {[%clk 0:00:17]}  Rc8+ {[%clk 0:00:02]} 50. Kb5 {[%clk 0:00:17]}  Rc2 {[%clk 0:00:02]} 51. c5 {[%clk 0:00:16]}  Rg2 {[%clk 0:00:01]} 52. Rb6+ {[%clk 0:00:16]}  Ka8 {[%clk 0:00:01]} 53. Ra6+ {[%clk 0:00:15]}  Kb8 {[%clk 0:00:02]} 54. Rff6 {[%clk 0:00:14]}  Rg7 {[%clk 0:00:01]} 55. Rfb6+ {[%clk 0:00:14]}  Kc7 {[%clk 0:00:02]} 56. Ra7+ {[%clk 0:00:14]}  Kd8 {[%clk 0:00:01]} 57. Rxg7 {[%clk 0:00:15]} 1-0


[Site "https://www.chess.com"]

[Event "Titled Tuesday Blitz August 1 Early 2023"]
[White "Feliz Dotel, Dewar Bienvenido"]
[Black "Gombocz, Ferenc Jr."]
[WhiteFideId "6402801"]
[BlackFideId "775029"]
[WhiteElo "2135"]
[BlackElo "2386"]
[Result "0-1"]
[Round "7"]
[TimeControl "180+1"]
[Date "2023.08.01"]
[WhiteClock "0:00:20"]
[BlackClock "0:00:30"]
[Board "182"]

1. d4 {[%clk 0:03:00]}  d5 {[%clk 0:02:59]} 2. e3 {[%clk 0:02:59]}  Nf6 {[%clk 0:02:58]} 3. Nf3 {[%clk 0:02:59]}  c5 {[%clk 0:02:59]} 4. dxc5 {[%clk 0:02:59]}  Nc6 {[%clk 0:02:59]} 5. a3 {[%clk 0:02:58]}  a5 {[%clk 0:02:56]} 6. c4 {[%clk 0:02:58]}  e6 {[%clk 0:02:54]} 7. cxd5 {[%clk 0:02:58]}  Qxd5 {[%clk 0:02:54]} 8. Qc2 {[%clk 0:02:46]}  Qxc5 {[%clk 0:02:53]} 9. Qxc5 {[%clk 0:02:42]}  Bxc5 {[%clk 0:02:53]} 10. Nc3 {[%clk 0:02:43]}  O-O {[%clk 0:02:52]} 11. Bb5 {[%clk 0:02:42]}  Bd7 {[%clk 0:02:51]} 12. O-O {[%clk 0:02:42]}  Rfd8 {[%clk 0:02:49]} 13. b3 {[%clk 0:02:41]}  Ne7 {[%clk 0:02:43]} 14. Bxd7 {[%clk 0:02:39]}  Rxd7 {[%clk 0:02:44]} 15. Bb2 {[%clk 0:02:39]}  Ned5 {[%clk 0:02:36]} 16. Rad1 {[%clk 0:02:33]}  Nxc3 {[%clk 0:02:27]} 17. Bxc3 {[%clk 0:02:33]}  Rad8 {[%clk 0:02:27]} 18. Rxd7 {[%clk 0:02:28]}  Rxd7 {[%clk 0:02:28]} 19. b4 {[%clk 0:02:11]}  axb4 {[%clk 0:02:26]} 20. Bxb4 {[%clk 0:02:12]}  Bxb4 {[%clk 0:02:21]} 21. axb4 {[%clk 0:02:13]}  Nd5 {[%clk 0:02:15]} 22. Rb1 {[%clk 0:02:05]}  Nxb4 {[%clk 0:02:06]} 23. Ne5 {[%clk 0:01:44]}  Rc7 {[%clk 0:02:04]} 24. h3 {[%clk 0:01:43]}  Nd5 {[%clk 0:02:02]} 25. g3 {[%clk 0:01:40]}  f6 {[%clk 0:01:59]} 26. Nf3 {[%clk 0:01:38]}  Kf7 {[%clk 0:01:51]} 27. Nd4 {[%clk 0:01:36]}  Ke7 {[%clk 0:01:44]} 28. Rb5 {[%clk 0:01:33]}  Kd6 {[%clk 0:01:31]} 29. e4 {[%clk 0:01:27]}  Nc3 {[%clk 0:01:22]} 30. Rb3 {[%clk 0:01:26]}  Ke5 {[%clk 0:01:05]} 31. Rb4 {[%clk 0:00:52]}  Nxe4 {[%clk 0:00:35]} 32. Nf3+ {[%clk 0:00:48]}  Kf5 {[%clk 0:00:33]} 33. Nd4+ {[%clk 0:00:43]}  Ke5 {[%clk 0:00:33]} 34. Nf3+ {[%clk 0:00:42]}  Kf5 {[%clk 0:00:33]} 35. g4+ {[%clk 0:00:20]}  Kf4 {[%clk 0:00:33]} 36. Nd2 {[%clk 0:00:20]}  f5 {[%clk 0:00:32]} 37. f3 {[%clk 0:00:20]}  Rc1+ {[%clk 0:00:31]} 38. Kg2 {[%clk 0:00:19]}  Rc2 {[%clk 0:00:31]} 39. fxe4 {[%clk 0:00:20]}  Rxd2+ {[%clk 0:00:31]} 40. Kf1 {[%clk 0:00:21]}  fxe4 {[%clk 0:00:31]} 41. Rxb7 {[%clk 0:00:20]}  Kf3 {[%clk 0:00:30]} 42. Rf7+ {[%clk 0:00:20]}  Ke3 {[%clk 0:00:29]} 43. Rxg7 {[%clk 0:00:21]}  h6 {[%clk 0:00:26]} 44. Re7 {[%clk 0:00:21]}  Kf3 {[%clk 0:00:25]} 45. Rf7+ {[%clk 0:00:20]}  Kg3 {[%clk 0:00:24]} 46. Re7 {[%clk 0:00:20]}  Rf2+ {[%clk 0:00:20]} 47. Ke1 {[%clk 0:00:20]}  Rf6 {[%clk 0:00:20]} 48. Ke2 {[%clk 0:00:20]}  Kxh3 {[%clk 0:00:20]} 49. Ke3 {[%clk 0:00:20]}  Kxg4 {[%clk 0:00:21]} 50. Kxe4 {[%clk 0:00:20]}  Rg6 {[%clk 0:00:20]} 51. Rh7 {[%clk 0:00:20]}  h5 {[%clk 0:00:20]} 52. Ke5 {[%clk 0:00:19]}  h4 {[%clk 0:00:20]} 53. Ke4 {[%clk 0:00:19]}  h3 {[%clk 0:00:21]} 54. Ke3 {[%clk 0:00:18]}  Kg3 {[%clk 0:00:21]} 55. Ra7 {[%clk 0:00:18]}  h2 {[%clk 0:00:21]} 56. Rh7 {[%clk 0:00:17]}  Kg2 {[%clk 0:00:20]} 57. Ke2 {[%clk 0:00:16]}  h1=Q {[%clk 0:00:20]} 58. Rxh1 {[%clk 0:00:17]}  Kxh1 {[%clk 0:00:21]} 59. Ke3 {[%clk 0:00:18]}  Kg2 {[%clk 0:00:21]} 60. Ke4 {[%clk 0:00:19]}  Kg3 {[%clk 0:00:22]} 61. Ke5 {[%clk 0:00:20]}  Kg4 {[%clk 0:00:22]} 62. Ke4 {[%clk 0:00:21]}  Kg5 {[%clk 0:00:23]} 63. Ke5 {[%clk 0:00:22]}  Kh6 {[%clk 0:00:24]} 64. Ke4 {[%clk 0:00:22]}  Kg7 {[%clk 0:00:25]} 65. Ke5 {[%clk 0:00:22]}  Kf7 {[%clk 0:00:25]} 66. Kd6 {[%clk 0:00:23]}  Kf6 {[%clk 0:00:25]} 67. Kc5 {[%clk 0:00:23]}  e5 {[%clk 0:00:26]} 68. Kd5 {[%clk 0:00:23]}  Kf5 {[%clk 0:00:27]} 69. Kc4 {[%clk 0:00:24]}  e4 {[%clk 0:00:28]} 70. Kc3 {[%clk 0:00:24]}  Kf4 {[%clk 0:00:28]} 71. Kd2 {[%clk 0:00:25]}  e3+ {[%clk 0:00:29]} 72. Ke2 {[%clk 0:00:26]}  Ke4 {[%clk 0:00:29]} 73. Ke1 {[%clk 0:00:26]}  Kf3 {[%clk 0:00:30]} 74. Kf1 {[%clk 0:00:26]}  Rh6 {[%clk 0:00:30]} 75. Kg1 {[%clk 0:00:20]}  Rh7 {[%clk 0:00:30]} 0-1


[Site "https://www.chess.com"]

[Event "Titled Tuesday Blitz August 1 Early 2023"]
[White "Eggleston, Thomas A"]
[Black "LionKing2367890"]
[WhiteFideId "412139"]
[WhiteElo "2376"]
[BlackElo "2177"]
[Result "1-0"]
[Round "7"]
[TimeControl "180+1"]
[Date "2023.08.01"]
[WhiteClock "0:00:06"]
[BlackClock "0:00:00"]
[Board "183"]

1. e4 {[%clk 0:03:00]}  e5 {[%clk 0:02:59]} 2. Nf3 {[%clk 0:03:01]}  Nc6 {[%clk 0:03:00]} 3. d4 {[%clk 0:03:00]}  exd4 {[%clk 0:03:00]} 4. Nxd4 {[%clk 0:03:01]}  Nf6 {[%clk 0:02:59]} 5. Nc3 {[%clk 0:03:01]}  Bb4 {[%clk 0:02:59]} 6. Nxc6 {[%clk 0:03:01]}  bxc6 {[%clk 0:02:59]} 7. Bd3 {[%clk 0:03:02]}  d5 {[%clk 0:02:58]} 8. exd5 {[%clk 0:03:02]}  cxd5 {[%clk 0:02:58]} 9. O-O {[%clk 0:03:03]}  O-O {[%clk 0:02:57]} 10. h3 {[%clk 0:03:03]}  h6 {[%clk 0:02:55]} 11. Qf3 {[%clk 0:03:03]}  c6 {[%clk 0:02:25]} 12. Bf4 {[%clk 0:03:03]}  Re8 {[%clk 0:02:19]} 13. Ne2 {[%clk 0:02:44]}  Bb7 {[%clk 0:02:12]} 14. Ng3 {[%clk 0:02:39]}  Bd6 {[%clk 0:01:57]} 15. Bxd6 {[%clk 0:02:28]}  Qxd6 {[%clk 0:01:56]} 16. Nf5 {[%clk 0:02:29]}  Qf8 {[%clk 0:01:56]} 17. Nxh6+ {[%clk 0:02:26]}  gxh6 {[%clk 0:01:52]} 18. Qxf6 {[%clk 0:02:26]}  Qg7 {[%clk 0:01:53]} 19. Qd6 {[%clk 0:02:20]}  Rad8 {[%clk 0:01:46]} 20. Qc7 {[%clk 0:02:16]}  Ba8 {[%clk 0:01:46]} 21. Rae1 {[%clk 0:02:12]}  Qxb2 {[%clk 0:01:35]} 22. Re3 {[%clk 0:02:04]}  Qb6 {[%clk 0:00:57]} 23. Rg3+ {[%clk 0:02:00]}  Kf8 {[%clk 0:00:57]} 24. Qf4 {[%clk 0:01:59]}  Re6 {[%clk 0:00:52]} 25. Bf5 {[%clk 0:01:40]}  Rf6 {[%clk 0:00:44]} 26. Qe5 {[%clk 0:01:23]}  c5 {[%clk 0:00:43]} 27. Bh7 {[%clk 0:01:02]}  Re6 {[%clk 0:00:41]} 28. Qh5 {[%clk 0:00:41]}  Bb7 {[%clk 0:00:26]} 29. c4 {[%clk 0:00:34]}  dxc4 {[%clk 0:00:20]} 30. Rb1 {[%clk 0:00:33]}  Qc7 {[%clk 0:00:18]} 31. Bf5 {[%clk 0:00:21]}  Rf6 {[%clk 0:00:15]} 32. Bh7 {[%clk 0:00:21]}  Re6 {[%clk 0:00:15]} 33. Rxb7 {[%clk 0:00:17]}  Qxb7 {[%clk 0:00:15]} 34. Qxc5+ {[%clk 0:00:15]}  Ke8 {[%clk 0:00:08]} 35. Rg8+ {[%clk 0:00:14]}  Kd7 {[%clk 0:00:08]} 36. Qd4+ {[%clk 0:00:13]}  Rd6 {[%clk 0:00:07]} 37. Rxd8+ {[%clk 0:00:13]}  Kxd8 {[%clk 0:00:07]} 38. Qxd6+ {[%clk 0:00:14]}  Ke8 {[%clk 0:00:07]} 39. Bf5 {[%clk 0:00:12]}  c3 {[%clk 0:00:04]} 40. Qe5+ {[%clk 0:00:12]}  Kf8 {[%clk 0:00:04]} 41. Qxc3 {[%clk 0:00:12]}  Qd5 {[%clk 0:00:04]} 42. Qh8+ {[%clk 0:00:11]}  Ke7 {[%clk 0:00:05]} 43. Bg4 {[%clk 0:00:11]}  Qxa2 {[%clk 0:00:04]} 44. Qxh6 {[%clk 0:00:10]}  Qb1+ {[%clk 0:00:04]} 45. Kh2 {[%clk 0:00:09]}  Qb8+ {[%clk 0:00:05]} 46. g3 {[%clk 0:00:09]}  Qb2 {[%clk 0:00:05]} 47. Qf4 {[%clk 0:00:09]}  a5 {[%clk 0:00:04]} 48. Qc7+ {[%clk 0:00:08]}  Kf8 {[%clk 0:00:04]} 49. Kg2 {[%clk 0:00:06]}  a4 {[%clk 0:00:03]} 50. Bf3 {[%clk 0:00:06]}  a3 {[%clk 0:00:00]} 51. Bd5 {[%clk 0:00:06]} 1-0


[Site "https://www.chess.com"]

[Event "Titled Tuesday Blitz August 1 Early 2023"]
[White "Preobrazhenska_D2011"]
[Black "Lopez Gracia, Fernando"]
[BlackFideId "2207184"]
[WhiteElo "2088"]
[BlackElo "2367"]
[Result "1-0"]
[Round "7"]
[TimeControl "180+1"]
[Date "2023.08.01"]
[WhiteClock "0:00:12"]
[BlackClock "0:00:12"]
[Board "184"]

1. e4 {[%clk 0:03:00]}  c5 {[%clk 0:03:00]} 2. Nf3 {[%clk 0:03:00]}  e6 {[%clk 0:03:01]} 3. g3 {[%clk 0:03:00]}  Nf6 {[%clk 0:02:59]} 4. Qe2 {[%clk 0:02:55]}  Nc6 {[%clk 0:02:56]} 5. Bg2 {[%clk 0:02:54]}  d6 {[%clk 0:02:55]} 6. O-O {[%clk 0:02:53]}  Be7 {[%clk 0:02:56]} 7. c3 {[%clk 0:02:52]}  O-O {[%clk 0:02:52]} 8. d4 {[%clk 0:02:53]}  cxd4 {[%clk 0:02:53]} 9. cxd4 {[%clk 0:02:53]}  d5 {[%clk 0:02:51]} 10. e5 {[%clk 0:02:52]}  Nd7 {[%clk 0:02:50]} 11. Nc3 {[%clk 0:02:51]}  a6 {[%clk 0:02:49]} 12. Be3 {[%clk 0:02:47]}  b5 {[%clk 0:02:48]} 13. Nd2 {[%clk 0:02:41]}  b4 {[%clk 0:02:48]} 14. Na4 {[%clk 0:02:23]}  a5 {[%clk 0:02:48]} 15. Rfc1 {[%clk 0:02:19]}  Ba6 {[%clk 0:02:47]} 16. Qg4 {[%clk 0:02:18]}  Bb5 {[%clk 0:02:46]} 17. b3 {[%clk 0:02:16]}  Re8 {[%clk 0:02:30]} 18. f4 {[%clk 0:02:01]}  g6 {[%clk 0:02:25]} 19. Nb2 {[%clk 0:01:56]}  Nb6 {[%clk 0:02:21]} 20. Qf3 {[%clk 0:01:47]}  a4 {[%clk 0:02:16]} 21. bxa4 {[%clk 0:01:47]}  Nxa4 {[%clk 0:02:16]} 22. Nxa4 {[%clk 0:01:47]}  Rxa4 {[%clk 0:02:16]} 23. Nb3 {[%clk 0:01:45]}  Na5 {[%clk 0:02:03]} 24. h4 {[%clk 0:01:20]}  Bc4 {[%clk 0:01:52]} 25. Bd2 {[%clk 0:01:12]}  Qa8 {[%clk 0:01:47]} 26. Qd1 {[%clk 0:00:40]}  Nxb3 {[%clk 0:01:11]} 27. axb3 {[%clk 0:00:40]}  Bxb3 {[%clk 0:01:12]} 28. Qe1 {[%clk 0:00:37]}  Rb8 {[%clk 0:01:02]} 29. Rab1 {[%clk 0:00:33]}  Bc4 {[%clk 0:00:55]} 30. Rxc4 {[%clk 0:00:30]}  dxc4 {[%clk 0:00:46]} 31. Bxa8 {[%clk 0:00:31]}  Rbxa8 {[%clk 0:00:47]} 32. Bxb4 {[%clk 0:00:24]}  Bxb4 {[%clk 0:00:46]} 33. Rxb4 {[%clk 0:00:23]}  Ra1 {[%clk 0:00:35]} 34. Rb1 {[%clk 0:00:24]}  R1a2 {[%clk 0:00:35]} 35. Qc1 {[%clk 0:00:16]}  R8a3 {[%clk 0:00:32]} 36. Qe1 {[%clk 0:00:10]}  c3 {[%clk 0:00:30]} 37. Rc1 {[%clk 0:00:11]}  c2 {[%clk 0:00:29]} 38. Qd2 {[%clk 0:00:09]}  Rxg3+ {[%clk 0:00:28]} 39. Kh2 {[%clk 0:00:10]}  Rg4 {[%clk 0:00:17]} 40. Rxc2 {[%clk 0:00:10]}  Rxc2 {[%clk 0:00:17]} 41. Qxc2 {[%clk 0:00:11]}  Rxf4 {[%clk 0:00:17]} 42. Qc3 {[%clk 0:00:05]}  Rxh4+ {[%clk 0:00:17]} 43. Kg3 {[%clk 0:00:06]}  Rh5 {[%clk 0:00:17]} 44. Qc8+ {[%clk 0:00:06]}  Kg7 {[%clk 0:00:17]} 45. Qd8 {[%clk 0:00:07]}  Rf5 {[%clk 0:00:17]} 46. Qh4 {[%clk 0:00:04]}  h5 {[%clk 0:00:17]} 47. Qe4 {[%clk 0:00:04]}  g5 {[%clk 0:00:16]} 48. d5 {[%clk 0:00:04]}  Rf4 {[%clk 0:00:14]} 49. Qd3 {[%clk 0:00:04]}  exd5 {[%clk 0:00:14]} 50. Qxd5 {[%clk 0:00:04]}  h4+ {[%clk 0:00:11]} 51. Kh3 {[%clk 0:00:04]}  Kg6 {[%clk 0:00:07]} 52. Qc6+ {[%clk 0:00:05]}  Kf5 {[%clk 0:00:06]} 53. Qc7 {[%clk 0:00:03]}  Rf3+ {[%clk 0:00:05]} 54. Kg2 {[%clk 0:00:04]}  Re3 {[%clk 0:00:04]} 55. Qxf7+ {[%clk 0:00:04]}  Kxe5 {[%clk 0:00:04]} 56. Qe7+ {[%clk 0:00:05]}  Kf4 {[%clk 0:00:04]} 57. Qf6+ {[%clk 0:00:05]}  Kg4 {[%clk 0:00:04]} 58. Qd4+ {[%clk 0:00:05]}  Kh5 {[%clk 0:00:02]} 59. Qxe3 {[%clk 0:00:06]}  g4 {[%clk 0:00:03]} 60. Qe5+ {[%clk 0:00:06]}  Kg6 {[%clk 0:00:03]} 61. Qe6+ {[%clk 0:00:06]}  Kg5 {[%clk 0:00:04]} 62. Qe7+ {[%clk 0:00:06]}  Kf4 {[%clk 0:00:05]} 63. Qxh4 {[%clk 0:00:06]}  Kf5 {[%clk 0:00:04]} 64. Qh5+ {[%clk 0:00:06]}  Kf4 {[%clk 0:00:05]} 65. Qg6 {[%clk 0:00:06]}  g3 {[%clk 0:00:05]} 66. Qxg3+ {[%clk 0:00:06]}  Ke4 {[%clk 0:00:06]} 67. Qg4+ {[%clk 0:00:07]}  Kd3 {[%clk 0:00:05]} 68. Qf4 {[%clk 0:00:07]}  Ke2 {[%clk 0:00:05]} 69. Kg3 {[%clk 0:00:07]}  Kd3 {[%clk 0:00:06]} 70. Qe5 {[%clk 0:00:07]}  Kc2 {[%clk 0:00:07]} 71. Qd4 {[%clk 0:00:08]}  Kb3 {[%clk 0:00:07]} 72. Qc5 {[%clk 0:00:08]}  Ka4 {[%clk 0:00:08]} 73. Qb6 {[%clk 0:00:09]}  Ka3 {[%clk 0:00:08]} 74. Kf3 {[%clk 0:00:09]}  Ka4 {[%clk 0:00:09]} 75. Ke3 {[%clk 0:00:10]}  Ka3 {[%clk 0:00:10]} 76. Kd3 {[%clk 0:00:11]}  Ka4 {[%clk 0:00:11]} 77. Kc3 {[%clk 0:00:12]}  Ka3 {[%clk 0:00:12]} 78. Qa5# {[%clk 0:00:12]} 1-0


[Site "https://www.chess.com"]

[Event "Titled Tuesday Blitz August 1 Early 2023"]
[White "Lohani, Sujana"]
[Black "Mayaud, Raphael"]
[WhiteFideId "12311987"]
[BlackFideId "627151"]
[WhiteElo "1960"]
[BlackElo "2364"]
[Result "0-1"]
[Round "7"]
[TimeControl "180+1"]
[Date "2023.08.01"]
[WhiteClock "0:00:01"]
[BlackClock "0:01:27"]
[Board "185"]

1. d4 {[%clk 0:02:49]}  Nf6 {[%clk 0:02:59]} 2. Nf3 {[%clk 0:02:50]}  d5 {[%clk 0:02:59]} 3. g3 {[%clk 0:02:48]}  c6 {[%clk 0:02:56]} 4. Bg2 {[%clk 0:02:48]}  Bf5 {[%clk 0:02:56]} 5. O-O {[%clk 0:02:49]}  e6 {[%clk 0:02:56]} 6. c4 {[%clk 0:02:49]}  Nbd7 {[%clk 0:02:56]} 7. Nc3 {[%clk 0:02:48]}  h6 {[%clk 0:02:56]} 8. Qb3 {[%clk 0:02:48]}  Qb6 {[%clk 0:02:56]} 9. c5 {[%clk 0:02:39]}  Qxb3 {[%clk 0:02:56]} 10. axb3 {[%clk 0:02:40]}  a6 {[%clk 0:02:57]} 11. b4 {[%clk 0:02:35]}  Rc8 {[%clk 0:02:56]} 12. Bf4 {[%clk 0:02:32]}  Be7 {[%clk 0:02:55]} 13. h4 {[%clk 0:01:56]}  O-O {[%clk 0:02:54]} 14. h5 {[%clk 0:01:52]}  Rfe8 {[%clk 0:02:53]} 15. Nh2 {[%clk 0:01:39]}  Bd8 {[%clk 0:02:50]} 16. g4 {[%clk 0:01:38]}  Nxg4 {[%clk 0:02:39]} 17. e4 {[%clk 0:01:30]}  dxe4 {[%clk 0:02:33]} 18. Nxe4 {[%clk 0:01:30]}  Bxe4 {[%clk 0:02:22]} 19. Bxe4 {[%clk 0:01:20]}  Nxh2 {[%clk 0:02:21]} 20. Kxh2 {[%clk 0:01:19]}  Bc7 {[%clk 0:02:07]} 21. Bxc7 {[%clk 0:01:02]}  Rxc7 {[%clk 0:02:08]} 22. Rg1 {[%clk 0:01:02]}  Nf6 {[%clk 0:02:08]} 23. Bf3 {[%clk 0:01:00]}  Rd7 {[%clk 0:02:08]} 24. Rg2 {[%clk 0:00:56]}  Red8 {[%clk 0:02:02]} 25. Rag1 {[%clk 0:00:56]}  Ne8 {[%clk 0:02:03]} 26. d5 {[%clk 0:00:53]}  exd5 {[%clk 0:01:55]} 27. Bd1 {[%clk 0:00:50]}  Kf8 {[%clk 0:01:46]} 28. f4 {[%clk 0:00:50]}  Re7 {[%clk 0:01:35]} 29. f5 {[%clk 0:00:49]}  f6 {[%clk 0:01:33]} 30. Bb3 {[%clk 0:00:28]}  Nc7 {[%clk 0:01:32]} 31. Rd2 {[%clk 0:00:26]}  Rde8 {[%clk 0:01:31]} 32. Rgg2 {[%clk 0:00:25]}  Re4 {[%clk 0:01:31]} 33. Rd3 {[%clk 0:00:14]}  Rxb4 {[%clk 0:01:29]} 34. Rdg3 {[%clk 0:00:14]}  Re7 {[%clk 0:01:29]} 35. Bc2 {[%clk 0:00:13]}  Rh4+ {[%clk 0:01:27]} 36. Kg1 {[%clk 0:00:01]}  Rxh5 {[%clk 0:01:27]} 0-1


[Site "https://www.chess.com"]

[Event "Titled Tuesday Blitz August 1 Early 2023"]
[White "Krzywda, Andrzej"]
[Black "UgarteCesar"]
[WhiteFideId "1114565"]
[WhiteElo "2390"]
[BlackElo "2208"]
[Result "0-1"]
[Round "7"]
[TimeControl "180+1"]
[Date "2023.08.01"]
[WhiteClock "0:00:28"]
[BlackClock "0:00:42"]
[Board "188"]

1. e4 {[%clk 0:03:00]}  c5 {[%clk 0:02:58]} 2. Nf3 {[%clk 0:03:01]}  Nc6 {[%clk 0:02:57]} 3. d4 {[%clk 0:03:01]}  cxd4 {[%clk 0:02:58]} 4. Nxd4 {[%clk 0:03:02]}  Qb6 {[%clk 0:02:58]} 5. Nb3 {[%clk 0:03:01]}  Nf6 {[%clk 0:02:57]} 6. Nc3 {[%clk 0:03:01]}  e6 {[%clk 0:02:57]} 7. Bd3 {[%clk 0:03:01]}  a6 {[%clk 0:02:57]} 8. Be3 {[%clk 0:03:00]}  Qc7 {[%clk 0:02:57]} 9. f4 {[%clk 0:02:59]}  d6 {[%clk 0:02:54]} 10. g4 {[%clk 0:02:59]}  b5 {[%clk 0:02:53]} 11. g5 {[%clk 0:02:57]}  Nd7 {[%clk 0:02:53]} 12. Qe2 {[%clk 0:02:57]}  Bb7 {[%clk 0:02:54]} 13. O-O-O {[%clk 0:02:57]}  b4 {[%clk 0:02:54]} 14. Na4 {[%clk 0:02:47]}  Be7 {[%clk 0:02:52]} 15. Kb1 {[%clk 0:02:47]}  O-O {[%clk 0:02:44]} 16. h4 {[%clk 0:02:47]}  Rfc8 {[%clk 0:02:39]} 17. h5 {[%clk 0:02:46]}  Na5 {[%clk 0:02:38]} 18. g6 {[%clk 0:02:35]}  Nc4 {[%clk 0:02:38]} 19. Bc1 {[%clk 0:02:25]}  Qc6 {[%clk 0:02:23]} 20. h6 {[%clk 0:01:56]}  fxg6 {[%clk 0:02:11]} 21. hxg7 {[%clk 0:01:54]}  Rab8 {[%clk 0:02:08]} 22. Qh2 {[%clk 0:01:33]}  Nf6 {[%clk 0:01:54]} 23. Bxc4 {[%clk 0:01:24]}  Qxc4 {[%clk 0:01:51]} 24. Nb6 {[%clk 0:01:24]}  Qxe4 {[%clk 0:01:41]} 25. Nxc8 {[%clk 0:01:24]}  Rxc8 {[%clk 0:01:36]} 26. f5 {[%clk 0:01:13]}  exf5 {[%clk 0:01:24]} 27. Bg5 {[%clk 0:01:11]}  Nh5 {[%clk 0:01:23]} 28. Bxe7 {[%clk 0:01:08]}  Qxe7 {[%clk 0:01:24]} 29. Rhe1 {[%clk 0:01:06]}  Be4 {[%clk 0:01:10]} 30. Rd2 {[%clk 0:01:01]}  Nxg7 {[%clk 0:01:00]} 31. Nd4 {[%clk 0:00:57]}  a5 {[%clk 0:00:48]} 32. Nb5 {[%clk 0:00:28]}  Bxc2+ {[%clk 0:00:42]} 0-1


[Site "https://www.chess.com"]

[Event "Titled Tuesday Blitz August 1 Early 2023"]
[White "cycygogne"]
[Black "Goswami, Vedant"]
[BlackFideId "5003725"]
[WhiteElo "2156"]
[BlackElo "2333"]
[Result "1-0"]
[Round "7"]
[TimeControl "180+1"]
[Date "2023.08.01"]
[WhiteClock "0:00:55"]
[BlackClock "0:01:25"]
[Board "191"]

1. e4 {[%clk 0:03:00]}  a6 {[%clk 0:02:59]} 2. d4 {[%clk 0:03:00]}  c6 {[%clk 0:02:59]} 3. Nf3 {[%clk 0:02:56]}  d5 {[%clk 0:02:59]} 4. e5 {[%clk 0:02:54]}  Bg4 {[%clk 0:02:59]} 5. h3 {[%clk 0:02:52]}  Bh5 {[%clk 0:02:58]} 6. g4 {[%clk 0:02:48]}  Bg6 {[%clk 0:02:57]} 7. Nh4 {[%clk 0:02:46]}  e6 {[%clk 0:02:57]} 8. Nxg6 {[%clk 0:02:35]}  hxg6 {[%clk 0:02:57]} 9. Bg2 {[%clk 0:02:34]}  c5 {[%clk 0:02:56]} 10. c3 {[%clk 0:02:33]}  Nc6 {[%clk 0:02:55]} 11. O-O {[%clk 0:02:33]}  cxd4 {[%clk 0:02:53]} 12. cxd4 {[%clk 0:02:33]}  Qb6 {[%clk 0:02:53]} 13. Be3 {[%clk 0:02:30]}  Qxb2 {[%clk 0:02:47]} 14. Nd2 {[%clk 0:02:26]}  Qb6 {[%clk 0:02:18]} 15. Qa4 {[%clk 0:02:19]}  Qb4 {[%clk 0:02:15]} 16. Qd1 {[%clk 0:02:08]}  Qb6 {[%clk 0:02:09]} 17. Qa4 {[%clk 0:02:07]}  Bb4 {[%clk 0:02:03]} 18. Rab1 {[%clk 0:02:04]}  Qa5 {[%clk 0:01:59]} 19. Qxa5 {[%clk 0:01:48]}  Bxa5 {[%clk 0:01:58]} 20. Rxb7 {[%clk 0:01:48]}  Nge7 {[%clk 0:01:47]} 21. Nb3 {[%clk 0:01:47]}  Bc3 {[%clk 0:01:46]} 22. Rc1 {[%clk 0:01:44]}  O-O-O {[%clk 0:01:43]} 23. Rxe7 {[%clk 0:01:30]}  Nxe7 {[%clk 0:01:42]} 24. Rxc3+ {[%clk 0:01:30]}  Kb8 {[%clk 0:01:41]} 25. Bf1 {[%clk 0:01:30]}  Rc8 {[%clk 0:01:38]} 26. Nc5 {[%clk 0:01:30]}  Nc6 {[%clk 0:01:34]} 27. Rb3+ {[%clk 0:01:15]}  Ka8 {[%clk 0:01:33]} 28. Bxa6 {[%clk 0:01:15]}  Rb8 {[%clk 0:01:31]} 29. Bb7+ {[%clk 0:01:11]}  Ka7 {[%clk 0:01:30]} 30. Ra3+ {[%clk 0:00:59]}  Kb6 {[%clk 0:01:30]} 31. Ra6+ {[%clk 0:00:57]}  Kc7 {[%clk 0:01:25]} 32. Rxc6+ {[%clk 0:00:55]} 1-0


[Site "https://www.chess.com"]